bitfinex-derivatives/quotes_SOLF0:USTF0_20241008
["timestamp","ask_amount","ask_price","bid_price","bid_amount"]
[1728384340650,101.20719173,143.77,143.74,14.1893]
[1728384340851,96.34719173,143.77,143.74,14.1893]
[1728384341058,107.05719173,143.77,143.7,1.3373]
[1728384341263,10.71,143.74,143.72,3.4796]
[1728384341858,14.1894,143.74,143.72,3.4796]
[1728384342151,10.71,143.74,143.71,10.71]
[1728384342357,10.71,143.74,143.73,3.4796]
[1728384343663,0.12502,143.75,143.74,3.4793]
[1728384349963,0.12502,143.75,143.74,14.1893]
[1728384350968,0.12502,143.75,143.74,3.4793]
[1728384352267,7.09918,143.88,143.71,4.86]
[1728384352474,7.09918,143.88,143.8,14.1879]
[1728384352475,0.12502,143.81,143.8,14.1879]
[1728384362078,0.12502,143.81,143.8,3.4779]
[1728384362275,0.12502,143.81,143.8,14.1879]
[1728384364471,0.12502,143.81,143.75,2.7692]
[1728384364666,0.12502,143.81,143.77,10.71]
[1728384364870,10.83502,143.81,143.77,10.71]
[1728384365079,3.478,143.8,143.78,3.4782]
[1728384365289,10.83502,143.81,143.77,10.71]
[1728384365290,0.12502,143.81,143.77,10.71]
[1728384365578,3.60282,143.81,143.79,3.478]
[1728384367271,0.12502,143.81,143.79,3.478]
[1728384367670,3.60272,143.81,143.79,3.478]
[1728384368177,0.12502,143.81,143.77,10.71]
[1728384368578,3.60272,143.81,143.79,3.478]
[1728384369074,0.12502,143.81,143.79,3.478]
[1728384370475,3.60282,143.81,143.79,3.478]
[1728384370881,10.83502,143.81,143.78,3.4782]
[1728384371181,3.4781,143.8,143.78,3.4782]
[1728384371883,3.4781,143.79,143.77,3.4785]
[1728384372084,10.83502,143.81,143.77,3.4785]
[1728384372383,3.478,143.8,143.77,3.4785]
[1728384372584,10.83502,143.81,143.78,3.4782]
[1728384373282,14.31282,143.81,143.78,3.4782]
[1728384373473,10.83502,143.81,143.79,3.4779]
[1728384373771,14.31262,143.81,143.79,3.4779]
[1728384375686,14.31262,143.81,143.78,3.4783]
[1728384376185,10.83502,143.81,143.78,3.4783]
[1728384376388,3.4781,143.8,143.78,3.4783]
[1728384379892,14.31272,143.81,143.79,3.4779]
[1728384381986,0.12502,143.81,143.76,10.71]
[1728384382183,0.12502,143.81,143.8,3.4779]
[1728384382382,0.12502,143.81,143.8,14.1879]
[1728384385491,0.12502,143.81,143.8,3.4779]
[1728384385700,0.12502,143.81,143.8,14.1879]
[1728384388793,3.41201077,143.85,143.8,10.71]
[1728384389099,3.41201077,143.85,143.78,4.9]
[1728384389100,0.12502,143.87,143.86,3.4764]
[1728384389292,0.12502,143.87,143.86,14.1864]
[1728384390395,0.12502,143.87,143.86,3.4764]
[1728384398699,0.12502,143.87,143.86,14.1864]
[1728384399403,0.12518,143.88,143.86,10.71]
[1728384399597,0.12518,143.88,143.87,14.1862]
[1728384399908,0.12518,143.88,143.87,19.0862]
[1728384402196,0.12502,143.93,143.87,15.61]
[1728384402397,0.12502,143.93,143.92,10.71]
[1728384403605,0.12502,143.93,143.92,14.185]
[1728384405500,0.12502,143.93,143.92,3.475]
[1728384411012,0.12502,143.93,143.92,14.185]
[1728384412106,4.88,144.0,143.96,3.474]
[1728384412413,3.4737,143.98,143.96,3.474]
[1728384412605,6.90139853,143.98,143.96,3.474]
[1728384413012,3.4741,143.96,143.94,3.4744]
[1728384413921,6.87608645,143.96,143.94,3.4744]
[1728384414113,14.1838,143.97,143.95,3.4742]
[1728384415719,14.1838,143.97,143.93,15.59]
[1728384415909,14.1838,143.97,143.94,3.4744]
[1728384417325,14.1838,143.97,143.94,3.4743]
[1728384418820,3.4738,143.97,143.95,3.4742]
[1728384423923,14.20962287,143.98,143.89,93.3885302]
[1728384424117,11.98743778,143.97,143.92,10.71]
[1728384424323,10.71,143.97,143.92,10.71]
[1728384424520,3.4741,143.96,143.93,3.4745]
[1728384424924,7.00151971,143.96,143.93,3.4745]
[1728384425336,3.4746,143.94,143.91,3.4752]
[1728384425625,15.63051971,143.96,143.9,15.59]
[1728384426425,3.4744,143.95,143.93,3.4747]
[1728384429145,3.4746,143.94,143.92,3.4749]
[1728384431541,10.71,143.94,143.89,92.0487302]
[1728384431747,10.71,143.94,143.91,3.475]
[1728384432447,3.4748,143.93,143.91,3.475]
[1728384436951,14.1846,143.94,143.92,3.475]
[1728384437344,10.71,143.93,143.87,0.12502]
[1728384437548,3.4751,143.92,143.9,3.4754]
[1728384437749,10.71,143.93,143.89,10.71]
[1728384438051,14.1848,143.93,143.91,3.4751]
[1728384438452,4.92051971,143.96,143.87,4.98502]
[1728384438453,10.71,143.92,143.87,4.98502]
[1728384438752,10.71,143.92,143.87,15.69502]
[1728384439152,10.71,143.92,143.89,10.71]
[1728384439347,14.1851,143.92,143.9,3.4753]
[1728384442556,10.71,143.92,143.87,0.12502]
[1728384442760,14.1857,143.9,143.87,0.12502]
[1728384442957,14.1857,143.9,143.87,10.83502]
[1728384443161,10.71,143.9,143.87,10.83502]
[1728384443352,10.71,143.9,143.88,3.4759]
[1728384444667,10.71,143.9,143.87,0.12502]
[1728384445663,14.1856,143.9,143.88,3.4759]
[1728384446158,3.4757,143.89,143.87,3.60112]
[1728384447255,0.12502,143.99,143.88,15.57]
[1728384447564,0.12502,143.99,143.98,3.4735]
[1728384449266,0.12502,143.99,143.97,10.71]
[1728384449267,10.83502,143.99,143.97,3.4737]
[1728384449772,14.1836,143.98,143.92,10.71]
[1728384449960,10.71,143.97,143.94,3.4743]
[1728384450161,10.71,143.97,143.93,4.86]
[1728384450665,10.71,143.97,143.95,3.4741]
[1728384450968,10.71,143.96,143.92,4.86]
[1728384451662,10.71,143.96,143.91,12.074]
[1728384451971,10.71,143.96,143.91,16.934]
[1728384452167,0.12502,143.99,143.94,10.71]
[1728384452369,0.12502,143.99,143.98,3.4735]
[1728384454969,10.83502,143.99,143.98,3.4735]
[1728384456676,10.83502,143.99,143.97,3.4737]
[1728384457076,10.83502,143.99,143.94,15.57]
[1728384457372,0.12502,143.99,143.94,15.57]
[1728384457571,0.12502,143.99,143.98,3.4735]
[1728384463986,10.83502,143.99,143.98,3.4735]
[1728384464186,0.12502,143.99,143.98,3.4735]
[1728384464387,10.83502,143.99,143.98,3.4735]
[1728384465279,0.12502,143.99,143.98,3.4735]
[1728384474704,0.12502,143.99,143.98,14.1835]
[1728384475193,0.12502,143.99,143.98,19.2235]
[1728384476199,3.54123175,144.03,143.98,15.75]
[1728384476503,10.71,144.03,144.02,3.4724]
[1728384476888,14.10014938,144.03,144.02,3.4724]
[1728384480500,3.4721,144.04,144.02,3.4724]
[1728384480796,10.71,144.03,144.02,3.4724]
[1728384491303,10.71,144.03,143.96,2.79]
[1728384491509,10.71,144.01,143.97,15.69]
[1728384492210,10.71,144.01,144.0,3.473]
[1728384492606,10.71,144.01,143.97,4.98]
[1728384492808,10.71,144.0,143.97,4.98]
[1728384493111,10.71,144.01,143.97,10.71]
[1728384493798,10.71,144.01,144.0,3.473]
[1728384498307,10.71,144.01,143.96,7.77]
[1728384498514,10.71,144.01,143.96,18.48]
[1728384499007,4.98,144.03,143.97,10.71]
[1728384499208,10.71,144.01,143.97,10.71]
[1728384499406,10.71,144.01,143.96,7.77]
[1728384499612,10.71,144.01,143.97,10.71]
[1728384499912,10.71,144.01,144.0,3.473]
[1728384505927,10.71,144.01,143.96,1.3848]
[1728384506218,10.71,143.98,143.96,1.3848]
[1728384506414,10.71,143.99,143.96,1.3848]
[1728384507012,4.98,144.03,143.96,1.3848]
[1728384507215,10.71,144.0,143.96,1.3848]
[1728384508013,10.71,144.0,143.99,3.4733]
[1728384512520,4.98,144.03,144.02,3.4726]
[1728384512728,15.69,144.03,144.02,3.4726]
[1728384513116,19.1624,144.03,143.96,12.0948]
[1728384513325,10.71,144.01,143.97,11.26668814]
[1728384513630,10.71,144.01,144.0,3.4728]
[1728384515731,8.4524,144.03,143.96,12.0948]
[1728384515935,10.71,144.01,143.97,11.27743763]
[1728384516126,10.71,144.01,143.98,11.27743763]
[1728384516431,10.71,144.01,143.99,11.27743763]
[1728384516729,10.71,144.01,144.0,11.27743763]
[1728384517436,10.71,144.01,144.0,8.78852331]
[1728384517933,10.71,144.01,144.0,3.4728]
[1728384518129,10.71,144.01,144.0,8.79490586]
[1728384518537,10.71,144.01,144.0,3.4728]
[1728384519429,10.71,144.01,144.0,8.79634732]
[1728384521337,10.71,144.01,144.0,14.7688108]
[1728384521536,10.71,144.01,144.0,3.4728]
[1728384521739,10.71,144.01,144.0,8.79831632]
[1728384522032,14.1828,144.01,144.0,11.29746475]
[1728384522236,10.71,144.01,144.0,5.32551632]
[1728384523041,10.71,144.01,144.0,11.29587759]
[1728384523430,10.71,144.01,144.0,14.76887759]
[1728384524942,10.71,144.01,144.0,3.473]
[1728384525238,10.71,144.01,144.0,20.74324594]
[1728384525836,10.71,144.01,144.0,26.0685754]
[1728384526535,10.71,144.01,144.0,20.74324594]
[1728384528246,10.71,144.01,144.0,26.069023]
[1728384528440,10.71,144.01,144.0,20.74324594]
[1728384528847,10.71,144.01,144.0,14.77078456]
[1728384529246,4.98,144.03,144.02,3.4726]
[1728384529544,15.69,144.03,144.02,3.4726]
[1728384529846,4.98,144.03,144.02,3.4726]
[1728384530043,15.69,144.03,144.02,3.4726]
[1728384530444,15.69,144.03,144.02,8.79820354]
[1728384531144,15.69,144.03,144.02,3.4726]
[1728384531345,1.3877,144.04,143.96,12.0948]
[1728384531642,7.01866987,144.05,144.04,3.4721]
[1728384531643,8.48676987,144.05,144.04,3.4721]
[1728384531845,14.25676987,144.05,144.04,3.4721]
[1728384532257,3.54676987,144.05,144.04,3.4721]
[1728384532438,3.54676987,144.05,144.04,8.79421989]
[1728384534352,3.54676987,144.05,144.04,3.4721]
[1728384534843,3.54676987,144.05,144.04,8.79210586]
[1728384535350,0.12502,144.05,144.04,8.79210586]
[1728384535544,0.12502,144.05,144.04,14.75728382]
[1728384538348,0.12502,144.05,144.04,14.75451734]
[1728384538550,0.12502,144.05,144.04,8.79210586]
[1728384538750,14.30682,144.05,144.04,5.32000586]
[1728384538940,14.30682,144.05,144.03,3.4723]
[1728384539147,10.71,144.04,144.03,3.4723]
[1728384541356,10.71,144.04,143.99,7.6192]
[1728384541661,10.71,144.01,144.0,5.96456679]
[1728384541950,10.71,144.01,144.0,14.75595696]
[1728384544346,10.71,144.01,144.0,8.79139017]
[1728384544751,68.65535471,144.15,144.03,22.0]
[1728384544955,14.1802,144.12,144.09,3.4707]
[1728384545453,10.71,144.1,144.01,8.3604]
[1728384545647,10.71,144.08,144.07,3.4712]
[1728384545843,14.21941278,144.08,144.07,8.7832811]
[1728384546044,14.21941278,144.08,144.07,17.72402661]
[1728384546247,14.21941278,144.08,144.07,8.7832811]
[1728384548956,3.50941278,144.08,144.07,8.7832811]
[1728384549156,3.59542,144.11,144.08,3.471]
[1728384549457,10.71,144.09,144.08,3.471]
[1728384549654,7.13979109,144.11,144.08,9.05342039]
[1728384549967,10.71,144.09,144.08,3.471]
[1728384550257,10.71,144.09,144.08,9.05342919]
[1728384551954,10.71,144.09,144.08,9.051286]
[1728384552155,3.66939109,144.11,144.08,5.580286]
[1728384552352,3.66939109,144.11,144.05,10.71]
[1728384552553,10.71,144.1,144.06,5.57887537]
[1728384552862,10.71,144.1,144.09,3.4709]
[1728384553662,14.37939109,144.11,144.1,3.4706]
[1728384555262,14.37939109,144.11,144.05,5.04]
[1728384555563,10.71,144.1,144.06,5.57537542]
[1728384555757,10.71,144.1,144.05,15.75]
[1728384555952,10.71,144.1,144.09,3.4708]
[1728384556261,10.71,144.1,144.05,5.04]
[1728384556461,10.71,144.08,144.06,5.57474538]
[1728384556764,3.4707,144.1,144.08,3.4711]
[1728384557061,10.71,144.09,144.08,3.4711]
[1728384559655,10.71,144.1,144.09,3.4709]
[1728384560853,10.71,144.1,144.05,5.04]
[1728384561059,10.71,144.1,144.08,3.471]
[1728384561259,10.71,144.1,144.05,15.75]
[1728384561765,7.13989109,144.11,144.05,5.04]
[1728384561766,10.71,144.08,144.05,5.04]
[1728384562067,10.71,144.08,144.07,3.4714]
[1728384566085,10.71,144.08,143.99,0.12502]
[1728384566366,10.71,144.03,144.0,11.50173119]
[1728384566555,10.71,144.03,144.01,5.56664744]
[1728384566867,10.71,144.04,144.03,3.4722]
[1728384569265,10.71,144.05,144.04,3.4719]
[1728384569968,10.71,144.05,144.0,10.71]
[1728384570173,10.71,144.03,144.02,3.4724]
[1728384570374,10.71,144.03,143.99,0.12502]
[1728384570672,10.71,144.02,144.0,14.3504881]
[1728384570873,10.71,144.02,144.01,5.5194185]
[1728384571076,10.71,144.03,144.02,3.4726]
[1728384572865,8.5117,144.06,144.04,3.472]
[1728384573065,10.71,144.05,144.04,3.472]
[1728384574080,68.65535471,144.15,144.1,3.22056001]
[1728384574275,1.2763206,144.14,144.1,3.22056001]
[1728384574474,10.71,144.12,144.1,3.22056001]
[1728384574674,14.17722573,144.12,144.1,3.22056001]
[1728384575380,10.71,144.12,144.1,3.22056001]
[1728384576480,14.30552,144.11,144.08,3.471]
[1728384576875,10.71,144.09,144.05,5.04]
[1728384577177,10.71,144.07,144.06,3.4716]
[1728384578479,3.4707,144.1,144.05,5.04]
[1728384578480,20.1307,144.1,144.07,3.4712]
[1728384578877,16.66,144.1,144.05,5.04]
[1728384579083,16.66,144.1,144.08,3.4709]
[1728384585688,20.1307,144.1,144.08,3.4709]
[1728384588092,16.66,144.1,144.08,3.4709]
[1728384588988,16.66,144.1,144.09,3.4709]
[1728384589891,20.1308,144.1,144.07,3.4712]
[1728384590084,16.66,144.1,144.04,5.14]
[1728384590490,20.1308,144.1,144.07,3.4712]
[1728384590886,20.1308,144.1,144.04,5.14]
[1728384591087,20.1308,144.1,144.08,3.4711]
[1728384591295,20.1308,144.1,144.04,5.14]
[1728384591697,20.1308,144.1,144.07,3.4712]
[1728384591897,16.66,144.1,144.07,3.4712]
[1728384592097,3.471,144.09,144.07,3.4712]
[1728384592288,16.66,144.1,144.07,3.4713]
[1728384592594,20.1308,144.1,144.04,5.14]
[1728384593394,20.1308,144.1,144.07,3.4711]
[1728384594398,20.1308,144.1,144.08,3.471]
[1728384599899,20.1308,144.1,144.07,3.4711]
[1728384600400,10.66,144.09,144.04,15.8]
[1728384600602,10.66,144.09,144.05,20.1296983]
[1728384600802,10.66,144.09,144.06,5.45376849]
[1728384601002,10.66,144.09,144.04,15.8]
[1728384601305,10.66,144.09,144.07,3.4711]
[1728384602094,10.66,144.08,144.03,1.3667]
[1728384602294,0.12502,144.11,144.05,10.66]
[1728384602494,0.12502,144.11,144.06,16.11417327]
[1728384602495,10.78502,144.11,144.06,16.11417327]
[1728384602700,10.78502,144.11,144.07,5.45417327]
[1728384603001,10.78502,144.11,144.05,10.66]
[1728384603206,10.78502,144.11,144.06,5.45494256]
[1728384603405,10.78502,144.11,144.07,5.45494256]
[1728384603604,10.66,144.09,144.05,10.66]
[1728384603799,10.66,144.09,144.06,5.45487234]
[1728384604000,10.66,144.09,144.07,5.45487234]
[1728384604196,10.66,144.08,144.04,15.8]
[1728384604504,10.66,144.08,144.05,5.45607047]
[1728384604705,10.66,144.08,144.06,5.45607047]
[1728384605096,10.66,144.08,144.04,15.8]
[1728384605293,10.66,144.08,144.05,5.45605453]
[1728384605504,10.66,144.08,144.06,5.45605453]
[1728384605705,10.66,144.08,144.04,15.8]
[1728384605906,10.66,144.08,144.05,5.45552009]
[1728384606104,10.66,144.08,144.06,5.45552009]
[1728384606409,10.66,144.1,144.08,3.471]
[1728384606712,10.66,144.1,144.05,10.66]
[1728384606903,10.66,144.1,144.08,3.4709]
[1728384607101,3.59552,144.11,144.07,15.8]
[1728384607102,0.12502,144.11,144.07,15.8]
[1728384607409,0.12502,144.11,144.1,3.4706]
[1728384607602,10.78502,144.11,144.1,3.4706]
[1728384607805,10.78502,144.11,144.07,5.14]
[1728384608309,10.78502,144.11,144.09,3.4707]
[1728384609603,3.471,144.09,144.05,5.14]
[1728384609810,10.66,144.08,144.06,5.45577421]
[1728384610010,10.66,144.08,144.07,5.45577421]
[1728384610307,10.66,144.08,144.04,15.8]
[1728384610606,10.66,144.08,144.07,3.4714]
[1728384611197,10.66,144.08,144.07,8.92955628]
[1728384612205,3.471,144.09,144.07,8.92955628]
[1728384612411,10.66,144.08,144.07,3.4714]
[1728384612707,10.66,144.08,144.07,8.93154645]
[1728384613109,10.66,144.08,144.07,3.4714]
[1728384613308,0.12502,144.11,144.07,5.46071799]
[1728384613516,10.78502,144.11,144.08,5.46071799]
[1728384613810,10.78502,144.11,144.09,3.4708]
[1728384614916,0.12502,144.11,144.09,3.4708]
[1728384615397,10.66,144.1,144.09,3.4708]
[1728384616513,10.66,144.1,144.05,10.66]
[1728384616804,10.66,144.09,144.06,20.16195712]
[1728384617009,10.66,144.09,144.08,3.4711]
[1728384617211,10.66,144.09,144.08,8.93333133]
[1728384618413,10.66,144.09,144.08,3.4711]
[1728384618712,10.66,144.09,144.08,8.93309048]
[1728384619814,10.66,144.09,144.08,3.4711]
[1728384620009,10.66,144.09,144.08,8.93170427]
[1728384620312,10.66,144.1,144.08,8.93170427]
[1728384620502,10.66,144.1,144.09,3.4709]
[1728384621214,0.12502,144.11,144.06,5.16]
[1728384621512,0.12502,144.11,144.1,3.4706]
[1728384622099,223.0,144.21,144.1,3.4706]
[1728384622100,343.9318,144.3,144.1,5.16]
[1728384622301,2.6878,144.25,144.11,20.1349509]
[1728384622513,2.6878,144.25,144.12,20.1349509]
[1728384622712,3.4674,144.24,144.13,25.2949509]
[1728384622907,3.53948556,144.23,144.14,20.1349509]
[1728384623113,3.53948556,144.23,144.2,10.66]
[1728384623407,3.53948556,144.23,144.21,5.4587798]
[1728384623408,7.00708556,144.23,144.21,5.4587798]
[1728384623613,7.00708556,144.23,144.19,14.1283]
[1728384623806,3.53948556,144.23,144.2,5.42947758]
[1728384624008,0.12502,144.23,144.19,10.66]
[1728384624210,0.12502,144.23,144.21,10.66]
[1728384624514,0.12502,144.23,144.18,16.65]
[1728384624705,0.12502,144.23,144.21,3.4678]
[1728384624901,0.12502,144.23,144.18,16.65]
[1728384625107,0.12502,144.23,144.19,5.4230521]
[1728384625313,0.12502,144.23,144.22,3.4677]
[1728384626303,0.12502,144.23,144.21,3.4679]
[1728384626702,0.12502,144.23,144.18,16.65]
[1728384626904,0.12502,144.23,144.2,3.4681]
[1728384629619,0.12502,144.23,144.17,21.81]
[1728384629820,0.12502,144.23,144.21,3.4679]
[1728384631619,0.12502,144.23,144.22,3.4677]
[1728384636220,0.12502,144.23,144.22,20.1177]
[1728384645828,0.12502,144.23,144.22,25.3377]
[1728384646430,0.12502,144.23,144.22,19.3377]
[1728384650235,0.12502,144.23,144.22,14.1177]
[1728384650429,0.12502,144.23,144.22,19.3377]
[1728384652932,0.12502,144.23,144.22,8.6877]
[1728384653229,0.12502,144.23,144.22,19.3377]
[1728384655929,0.12502,144.23,144.22,14.1177]
[1728384656142,0.12502,144.23,144.22,19.3377]
[1728384657727,0.12502,144.23,144.22,14.1177]
[1728384657927,0.12502,144.23,144.22,19.3377]
[1728384658134,0.12502,144.23,144.22,8.6877]
[1728384658631,0.12502,144.23,144.22,19.3377]
[1728384663337,0.12502,144.23,144.22,8.6877]
[1728384663539,0.12502,144.23,144.22,19.3377]
[1728384664528,0.12502,144.23,144.22,8.6877]
[1728384664740,0.12502,144.23,144.22,19.3377]
[1728384666538,0.12502,144.23,144.22,8.6877]
[1728384666837,0.12502,144.23,144.22,14.1177]
[1728384667034,0.12502,144.23,144.22,19.3377]
[1728384668840,10.77502,144.23,144.15,5.22]
[1728384669139,10.65,144.22,144.18,10.65]
[1728384669545,3.4679,144.22,144.19,3.4683]
[1728384669743,3.51949188,144.21,144.19,3.4683]
[1728384669943,10.77502,144.23,144.19,3.4683]
[1728384670139,6.87575004,144.22,144.19,3.4683]
[1728384672148,3.40785004,144.22,144.19,3.4683]
[1728384672441,3.468,144.21,144.18,14.1186]
[1728384672641,6.96245742,144.21,144.18,14.1186]
[1728384673340,6.96245742,144.21,144.18,10.65]
[1728384674038,6.96245742,144.21,144.18,14.1186]
[1728384675238,6.96245742,144.21,144.18,10.65]
[1728384675435,3.49445742,144.21,144.19,3.4683]
[1728384677247,3.49445742,144.21,144.2,3.4682]
[1728384678446,3.49445742,144.21,144.18,10.65]
[1728384678655,3.49445742,144.21,144.19,3.4684]
[1728384679046,15.53715742,144.21,144.19,3.4684]
[1728384679251,8.35525742,144.21,144.19,3.4684]
[1728384679453,19.00525742,144.21,144.19,3.4684]
[1728384679950,14.1184,144.2,144.17,8.6288]
[1728384680358,14.1184,144.2,144.17,3.4688]
[1728384681054,3.4684,144.2,144.17,10.65]
[1728384681353,15.53715742,144.21,144.17,10.65]
[1728384681550,4.88715742,144.21,144.18,10.65]
[1728384681745,4.88715742,144.21,144.19,3.4684]
[1728384682255,8.35515742,144.21,144.19,3.4684]
[1728384683257,4.88715742,144.21,144.19,3.4684]
[1728384684157,8.35525742,144.21,144.19,3.4684]
[1728384684654,15.53715742,144.21,144.17,10.65]
[1728384684856,10.65,144.2,144.13,91.8965906]
[1728384685047,10.65,144.18,144.14,5.16]
[1728384685244,14.1188,144.18,144.16,3.4691]
[1728384687662,3.4688,144.18,144.16,3.4691]
[1728384687955,10.65,144.19,144.16,3.4691]
[1728384688768,3.4687,144.18,144.16,3.4691]
[1728384689060,10.65,144.19,144.15,3.4693]
[1728384689255,3.4689,144.18,144.14,15.81]
[1728384689667,3.4689,144.18,144.14,10.65]
[1728384690551,3.4689,144.18,144.16,3.4692]
[1728384690858,14.1189,144.18,144.14,10.65]
[1728384691062,14.1189,144.18,144.15,8.7227284]
[1728384691366,10.65,144.18,144.15,3.4693]
[1728384691555,3.4691,144.17,144.14,14.1196]
[1728384691861,3.4691,144.17,144.15,5.25317344]
[1728384692052,3.4691,144.17,144.14,10.65]
[1728384692250,3.4691,144.17,144.15,8.72272631]
[1728384692454,3.4691,144.17,144.14,10.65]
[1728384692863,3.4691,144.17,144.14,14.1195]
[1728384693161,3.4691,144.17,144.14,10.65]
[1728384693362,1.4208,144.2,144.16,10.65]
[1728384693555,10.65,144.19,144.17,3.4688]
[1728384693951,10.65,144.19,144.13,97.0565906]
[1728384694148,10.65,144.18,144.16,3.4692]
[1728384694762,14.1188,144.18,144.16,3.4692]
[1728384695461,1.4208,144.2,144.17,10.65]
[1728384696160,1.4208,144.2,144.19,3.4685]
[1728384696961,1.3927,144.21,144.2,3.4682]
[1728384697562,4.8607,144.21,144.19,3.4684]
[1728384699869,1.3927,144.21,144.19,3.4684]
[1728384700058,12.0427,144.21,144.19,3.4684]
[1728384700558,15.5108,144.21,144.19,3.4684]
[1728384700958,12.0427,144.21,144.19,3.4684]
[1728384701168,15.5109,144.21,144.17,10.65]
[1728384701562,15.5109,144.21,144.18,3.4685]
[1728384703270,15.5109,144.21,144.19,3.4683]
[1728384705659,0.12502,144.29,144.23,18.46523881]
[1728384705862,3.53937548,144.29,144.27,10.65]
[1728384706061,3.53937548,144.29,144.28,10.65]
[1728384706667,0.12502,144.29,144.28,10.65]
[1728384707372,0.12502,144.29,144.28,14.1163]
[1728384709569,2.12077411,144.33,144.29,3.4658]
[1728384709769,2.12077411,144.33,144.3,10.65]
[1728384710169,5.56268522,144.33,144.3,10.65]
[1728384710369,11.9515,144.34,144.3,10.65]
[1728384710665,15.355626,144.34,144.27,5.06]
[1728384710872,15.355626,144.34,144.29,14.1159]
[1728384711070,3.4655,144.32,144.29,10.65]
[1728384712378,3.4655,144.32,144.29,14.1161]
[1728384713473,3.4658,144.31,144.29,10.65]
[1728384713878,3.4654,144.32,144.29,14.116]
[1728384714077,3.4654,144.32,144.3,10.65]
[1728384714981,15.355626,144.34,144.3,10.65]
[1728384715182,3.4652,144.33,144.3,14.1158]
[1728384716076,3.4654,144.32,144.3,14.1158]
[1728384718694,3.4654,144.32,144.3,10.65]
[1728384718990,3.4654,144.32,144.29,14.1159]
[1728384719995,3.404126,144.34,144.29,10.65]
[1728384720194,3.4651,144.34,144.3,10.65]
[1728384720492,3.5270726,144.35,144.31,10.65]
[1728384720693,10.77502,144.35,144.31,10.65]
[1728384720897,14.2398104,144.35,144.31,14.1155]
[1728384721090,3.5898104,144.35,144.28,5.06]
[1728384721389,0.12502,144.35,144.32,10.65]
[1728384721594,0.12502,144.35,144.32,14.1152]
[1728384721790,3.65774747,144.35,144.32,14.1152]
[1728384722192,3.465,144.34,144.31,19.1754]
[1728384723184,7.12244747,144.35,144.32,3.4652]
[1728384724701,7.12244747,144.35,144.32,14.1152]
[1728384724900,7.12244747,144.35,144.33,3.4651]
[1728384725396,3.58972,144.35,144.33,3.4651]
[1728384726102,6.98309481,144.35,144.33,3.4651]
[1728384727102,6.98309481,144.35,144.32,14.1152]
[1728384728702,3.4649,144.34,144.32,14.1152]
[1728384728897,3.51839481,144.35,144.32,14.1152]
[1728384729395,6.98319481,144.35,144.32,14.1152]
[1728384729790,6.98319481,144.35,144.32,10.65]
[1728384729995,6.98319481,144.35,144.33,3.4651]
[1728384730599,3.465,144.34,144.32,3.4653]
[1728384731000,3.51839481,144.35,144.32,3.4653]
[1728384731196,3.51839481,144.35,144.31,19.1754]
[1728384731197,14.16839481,144.35,144.31,19.1754]
[1728384731497,14.16839481,144.35,144.31,15.71]
[1728384732403,3.465,144.34,144.32,3.4653]
[1728384733604,3.465,144.34,144.31,19.1755]
[1728384733805,3.4649,144.34,144.31,19.1755]
[1728384734799,3.4649,144.34,144.31,8.5255]